fUST/lending_fUST_20241115
["ID","MTS","AMOUNT","RATE_DAILY","PERIOD"]
[342236286,1731610260347,-500.0,0.00016986,2]
[342236287,1731610260358,-32234.35,0.00016986,2]
[342236288,1731610260368,-500.0,0.00016986,2]
[342236289,1731610260377,-20503.9,0.00016986,2]
[342236290,1731610260387,-500.0,0.00016986,2]
[342236291,1731610260396,-151.0,0.00016986,2]
[342236292,1731610260406,-151.0,0.00016986,2]
[342236293,1731610260415,-151.0,0.00016986,2]
[342236294,1731610260424,-835.75,0.00016986,2]
[342236295,1731610260434,-695.49,0.00016986,2]
[342236296,1731610260443,-500.0,0.00016986,2]
[342236297,1731610260453,-500.0,0.00016986,2]
[342236298,1731610260462,-500.0,0.00016986,2]
[342236299,1731610260474,-500.0,0.00016986,2]
[342236300,1731610260483,-6013.42,0.00016986,2]
[342236301,1731610260493,-705.24,0.00016986,2]
[342236302,1731610260502,-500.0,0.00016986,2]
[342236303,1731610260512,-384.54596995,0.00017,3]
[342236304,1731610260521,-308.119706,0.00017,2]
[342236305,1731610260531,-210.2902007,0.00017,2]
[342236306,1731610260541,-791.867224,0.0001701,2]
[342236307,1731610260550,-1000.0,0.00017021,2]
[342236308,1731610260559,-1000.0,0.00017021,2]
[342236309,1731610260569,-949.6665764,0.00017021,2]
[342236310,1731610260578,-1000.0,0.00017021,2]
[342236311,1731610260587,-1000.0,0.00017021,2]
[342236312,1731610260597,-895.32296659,0.00017021,2]
[342236313,1731610260607,-1004.94956555,0.00017021,2]
[342236314,1731610260619,-151.0,0.00017021,2]
[342236315,1731610260629,-293.506021,0.00017021,2]
[342236316,1731610260638,-293.506021,0.00017021,2]
[342236317,1731610260648,-150.0,0.000171,2]
[342236318,1731610260658,-615.0,0.000172,2]
[342236319,1731610260668,-473.76888365,0.00017212,2]
[342236320,1731610260677,-151.0,0.0001726,2]
[342236321,1731610260691,-256.840312,0.0001726,2]
[342236322,1731610260708,-151.0,0.0001726,2]
[342236323,1731610260725,-151.0,0.0001726,2]
[342236324,1731610260739,-151.0,0.0001726,2]
[342236325,1731610260753,-151.0,0.0001726,2]
[342236326,1731610260767,-500.0,0.0001726,2]
[342236327,1731610260781,-368.35460915,0.0001726,2]
[342236328,1731610260795,-500.0,0.0001726,2]
[342236329,1731610260810,-500.0,0.0001726,2]
[342236330,1731610260825,-1073.86,0.0001726,2]
[342236331,1731610260839,-500.0,0.0001726,2]
[342236332,1731610260853,-500.0,0.0001726,2]
[342236333,1731610260869,-500.0,0.0001726,2]
[342236334,1731610260884,-500.0,0.0001726,2]
[342236335,1731610260898,-649.53,0.0001726,2]
[342236336,1731610260910,-832.807505,0.0001726,2]
[342236337,1731610260923,-832.807505,0.0001726,2]
[342236338,1731610260936,-832.807505,0.0001726,2]
[342236339,1731610260949,-832.807505,0.0001726,2]
[342236340,1731610260964,-500.0,0.0001726,2]
[342236341,1731610260982,-359.197958,0.0001726,2]
[342236342,1731610260997,-359.197958,0.0001726,2]
[342236343,1731610261013,-508.65218157,0.0001726,2]
[342236344,1731610261025,-359.197958,0.0001726,2]
[342236345,1731610261037,-359.197958,0.0001726,2]
[342236346,1731610261050,-500.0,0.0001726,2]
[342236347,1731610261066,-500.0,0.0001726,2]
[342236348,1731610261081,-612.65,0.0001726,2]
[342236349,1731610261093,-151.0,0.0001726,2]
[342236350,1731610261106,-151.0,0.0001726,2]
[342236351,1731610261120,-500.0,0.0001726,2]
[342236352,1731610261135,-500.0,0.0001726,2]
[342236353,1731610261146,-1523.354133,0.0001726,2]
[342236354,1731610261157,-1523.354133,0.0001726,2]
[342236355,1731610261170,-1523.354133,0.0001726,2]
[342236356,1731610261182,-1523.354133,0.0001726,2]
[342236357,1731610261195,-151.0,0.0001726,2]
[342236358,1731610261207,-151.0,0.0001726,2]
[342236359,1731610261222,-546.817044,0.0001726,2]
[342236360,1731610261235,-546.817044,0.0001726,2]
[342236361,1731610261246,-505.06812904,0.0001726,2]
[342236362,1731610261259,-546.817044,0.0001726,2]
[342236363,1731610261271,-546.817044,0.0001726,2]
[342236364,1731610261284,-500.0,0.0001726,2]
[342236365,1731610261296,-500.0,0.0001726,2]
[342236366,1731610261309,-500.0,0.0001726,2]
[342236367,1731610261321,-500.0,0.0001726,2]
[342236368,1731610261334,-1050.15,0.0001726,2]
[342236369,1731610261347,-500.0,0.0001726,2]
[342236370,1731610261360,-737.38,0.0001726,2]
[342236371,1731610261372,-593.55,0.0001726,2]
[342236372,1731610261384,-500.0,0.0001726,2]
[342236373,1731610261397,-1000.0,0.0001726,2]
[342236374,1731610261409,-500.0,0.0001726,2]
[342236375,1731610261422,-803.63,0.0001726,2]
[342236376,1731610261434,-500.0,0.0001726,2]
[342236377,1731610261446,-500.0,0.0001726,2]
[342236378,1731610261459,-715.92,0.0001726,2]
[342236379,1731610261474,-664.3,0.0001726,2]
[342236380,1731610261492,-500.0,0.0001726,2]
[342236381,1731610261504,-500.0,0.0001726,2]
[342236382,1731610261516,-500.0,0.0001726,2]
[342236383,1731610261529,-151.0,0.0001726,2]
[342236384,1731610261541,-151.0,0.0001726,2]
[342236385,1731610261553,-151.0,0.0001726,2]
[342236386,1731610261564,-500.0,0.0001726,2]
[342236387,1731610261576,-500.0,0.0001726,2]
[342236388,1731610261588,-738.36,0.0001726,2]
[342236389,1731610261600,-500.0,0.0001726,2]
[342236390,1731610261613,-410.763143,0.0001726,2]
[342236391,1731610261628,-410.763143,0.0001726,2]
[342236392,1731610261641,-410.763143,0.0001726,2]
[342236393,1731610261654,-410.763143,0.0001726,2]
[342236394,1731610261667,-760.84,0.0001726,2]
[342236395,1731610261681,-676.84,0.0001726,2]
[342236396,1731610261694,-500.0,0.0001726,2]
[342236397,1731610261706,-575.03,0.0001726,2]
[342236398,1731610261718,-285.344718,0.0001726,2]
[342236399,1731610261731,-285.344718,0.0001726,2]
[342236400,1731610261743,-500.0,0.0001726,2]
[342236401,1731610261754,-285.344718,0.0001726,2]
[342236402,1731610261766,-285.344718,0.0001726,2]
[342236403,1731610261779,-509.33,0.0001726,2]
[342236404,1731610261791,-500.0,0.0001726,2]
[342236405,1731610261804,-924.2,0.0001726,2]
[342236406,1731610261816,-500.0,0.0001726,2]
[342236407,1731610261828,-500.0,0.0001726,2]
[342236408,1731610261841,-500.0,0.0001726,2]
[342236409,1731610261853,-790.08,0.0001726,2]
[342236410,1731610261867,-1449.382996,0.0001726,2]
[342236411,1731610261879,-1449.382996,0.0001726,2]
[342236412,1731610261892,-1449.382996,0.0001726,2]
[342236413,1731610261905,-500.0,0.0001726,2]
[342236414,1731610261917,-500.0,0.0001726,2]
[342236415,1731610261928,-1449.382996,0.0001726,2]
[342236416,1731610261941,-1449.382996,0.0001726,2]
[342236417,1731610261953,-1449.382999,0.0001726,2]
[342236418,1731610261967,-510.17,0.0001726,2]
[342236419,1731610261980,-500.0,0.0001726,2]
[342236420,1731610261993,-323.291018,0.0001726,2]
[342236421,1731610262004,-323.291018,0.0001726,2]
[342236422,1731610262015,-323.291018,0.0001726,2]
[342236423,1731610262025,-500.0,0.0001726,2]
[342236424,1731610262035,-500.0,0.0001726,2]
[342236425,1731610262045,-323.291018,0.0001726,2]
[342236426,1731610262056,-323.291018,0.0001726,2]
[342236427,1731610262065,-323.291022,0.0001726,2]
[342236428,1731610262075,-500.0,0.0001726,2]
[342236429,1731610262085,-500.0,0.0001726,2]
[342236430,1731610262096,-500.0,0.0001726,2]
[342236431,1731610262106,-500.0,0.0001726,2]
[342236432,1731610262116,-500.0,0.0001726,2]
[342236433,1731610262125,-702.19,0.0001726,2]
[342236434,1731610262331,-500.0,0.0001726,2]
[342236435,1731610262351,-684.27,0.0001726,2]
[342236436,1731610262361,-500.0,0.0001726,2]
[342236437,1731610262371,-500.0,0.0001726,2]
[342236438,1731610262381,-500.0,0.0001726,2]
[342236439,1731610262392,-500.0,0.0001726,2]
[342236440,1731610262405,-2465.37,0.0001726,2]
[342236441,1731610262424,-151.0,0.0001726,2]
[342236442,1731610262439,-151.0,0.0001726,2]
[342236443,1731610262449,-151.0,0.0001726,2]
[342236444,1731610262459,-500.0,0.0001726,2]
[342236445,1731610262473,-733.26,0.0001726,2]
[342236446,1731610262483,-894.51,0.0001726,2]
[342236447,1731610262493,-500.0,0.0001726,2]
[342236448,1731610262502,-500.0,0.0001726,2]
[342236449,1731610262511,-151.0,0.0001726,2]
[342236450,1731610262521,-151.0,0.0001726,2]
[342236451,1731610262531,-151.0,0.0001726,2]
[342236452,1731610262541,-500.0,0.0001726,2]
[342236453,1731610262551,-500.0,0.0001726,2]
[342236454,1731610262560,-500.0,0.0001726,2]
[342236455,1731610262570,-151.0,0.0001726,2]
[342236456,1731610262580,-151.0,0.0001726,2]
[342236457,1731610262590,-1192.75,0.0001726,2]
[342236458,1731610262599,-581.34,0.0001726,2]
[342236459,1731610262609,-500.0,0.0001726,2]
[342236460,1731610262623,-1378.66,0.0001726,2]
[342236461,1731610262633,-1671.3,0.0001726,2]
[342236462,1731610262642,-927.79,0.0001726,2]
[342236463,1731610262652,-2322.08,0.0001726,2]
[342236464,1731610262663,-500.0,0.0001726,2]
[342236465,1731610262672,-500.0,0.0001726,2]
[342236466,1731610262682,-500.0,0.0001726,2]
[342236467,1731610262693,-613.53931776,0.0001726,2]
[342236468,1731610262703,-293.506021,0.0001726,2]
[342236469,1731610262714,-500.0,0.0001726,2]
[342236470,1731610262730,-188.202796,0.0001726,2]
[342236471,1731610262740,-188.202796,0.0001726,2]
[342236472,1731610262750,-188.202796,0.0001726,2]
[342236473,1731610262760,-500.0,0.0001726,2]
[342236474,1731610262771,-293.506029,0.0001726,2]
[342236475,1731610262781,-188.202796,0.0001726,2]
[342236476,1731610262791,-188.202796,0.0001726,2]
[342236477,1731610262801,-188.202804,0.0001726,2]
[342236478,1731610262811,-500.0,0.0001726,2]
[342236479,1731610262821,-1780.67,0.0001726,2]
[342236480,1731610262830,-880.41,0.0001726,2]
[342236481,1731610262840,-3042.027088,0.0001726,2]
[342236482,1731610262849,-3042.02709036,0.0001726,2]
[342236483,1731610262858,-534.44929052,0.0001726,2]
[342236484,1731610262868,-5623.94,0.0001726,2]
[342236485,1731610262878,-500.0,0.0001726,2]
[342236486,1731610262887,-500.0,0.0001726,2]
[342236487,1731610262897,-500.0,0.0001726,2]
[342236488,1731610262906,-835.83,0.0001726,2]
[342236489,1731610262916,-500.0,0.0001726,2]
[342236490,1731610262925,-500.0,0.0001726,2]
[342236491,1731610262935,-500.0,0.0001726,2]
[342236492,1731610262944,-629.82,0.0001726,2]
[342236493,1731610262954,-500.0,0.0001726,2]
[342236494,1731610262963,-500.0,0.0001726,2]
[342236495,1731610262975,-1684.94,0.0001726,2]
[342236496,1731610262985,-1324.130664,0.0001726,2]
[342236497,1731610262995,-1324.130664,0.0001726,2]
[342236498,1731610263004,-1324.130664,0.0001726,2]
[342236499,1731610263014,-687.91,0.0001726,2]
[342236500,1731610263023,-415.85224449,0.0001726,2]
[342236501,1731610263032,-1324.130664,0.0001726,2]
[342236502,1731610263042,-1324.130664,0.0001726,2]
[342236503,1731610263052,-1324.130674,0.0001726,2]
[342236504,1731610263062,-500.0,0.0001726,2]
[342236505,1731610263072,-200.0,0.0001726,2]
[342236506,1731610263082,-821.81,0.0001726,2]
[342236507,1731610263091,-958.23,0.0001726,2]
[342236508,1731610263100,-500.0,0.0001726,2]
[342236509,1731610263110,-2459.826957,0.0001726,2]
[342236510,1731610263120,-2459.826957,0.0001726,2]
[342236511,1731610263130,-2459.826957,0.0001726,2]
[342236512,1731610263141,-2459.826963,0.0001726,2]
[342236513,1731610263153,-500.0,0.0001726,2]
[342236514,1731610263163,-1943.37,0.0001726,2]
[342236515,1731610263173,-500.0,0.0001726,2]
[342236516,1731610263183,-500.0,0.0001726,2]
[342236517,1731610263193,-1639.23,0.0001726,2]
[342236518,1731610263204,-500.0,0.0001726,2]
[342236519,1731610263214,-500.0,0.0001726,2]
[342236520,1731610263225,-500.0,0.0001726,2]
[342236521,1731610263235,-753.66,0.0001726,2]
[342236522,1731610263246,-756.22,0.0001726,2]
[342236523,1731610263256,-893.68,0.0001726,2]
[342236524,1731610263266,-500.0,0.0001726,2]
[342236525,1731610263276,-500.0,0.0001726,2]
[342236526,1731610263286,-500.0,0.0001726,2]
[342236527,1731610263296,-916.48,0.0001726,2]
[342236528,1731610263305,-500.0,0.0001726,2]
[342236529,1731610263316,-523.64,0.0001726,2]
[342236530,1731610263326,-3321.82,0.0001726,2]
[342236531,1731610263336,-1362.06,0.0001726,2]
[342236532,1731610263346,-896.63,0.0001726,2]
[342236533,1731610263357,-587.65,0.0001726,2]
[342236534,1731610263367,-2414.88,0.0001726,2]
[342236535,1731610263376,-500.0,0.0001726,2]
[342236536,1731610263386,-500.0,0.0001726,2]
[342236537,1731610263396,-1415.2,0.0001726,2]
[342236538,1731610263406,-4454.85,0.0001726,2]
[342236539,1731610263416,-500.0,0.0001726,2]
[342236540,1731610263425,-500.0,0.0001726,2]
[342236541,1731610263435,-500.0,0.0001726,2]
[342236542,1731610263445,-682.74,0.0001726,2]
[342236543,1731610263455,-500.0,0.0001726,2]
[342236544,1731610263467,-565.13,0.0001726,2]
[342236545,1731610263476,-680.94,0.0001726,2]
[342236546,1731610263486,-943.33,0.0001726,2]
[342236547,1731610263495,-500.0,0.0001726,2]
[342236548,1731610263504,-1995.23,0.0001726,2]
[342236549,1731610263514,-500.0,0.0001726,2]
[342236550,1731610263524,-500.0,0.0001726,2]
[342236551,1731610263533,-617.34,0.0001726,2]
[342236552,1731610263543,-668.49,0.0001726,2]
[342236553,1731610263552,-460.14024,0.0001726,2]
[342236554,1731610263561,-460.14024,0.0001726,2]
[342236555,1731610263571,-787.68,0.0001726,2]
[342236556,1731610263581,-460.14024,0.0001726,2]
[342236557,1731610263591,-7674.17,0.0001726,2]
[342236558,1731610263601,-460.140242,0.0001726,2]
[342236559,1731610263611,-500.0,0.0001726,2]
[342236560,1731610263625,-1006.37,0.0001726,2]
[342236561,1731610263635,-532.27145215,0.0001726,2]
[342236562,1731610263644,-774.88,0.0001726,2]
[342236563,1731610263654,-1017.84,0.0001726,2]
[342236564,1731610263665,-805.08,0.0001726,2]
[342236565,1731610263675,-500.0,0.0001726,2]
[342236566,1731610263684,-500.0,0.0001726,2]
[342236567,1731610263694,-979.55,0.0001726,2]
[342236568,1731610263705,-500.0,0.0001726,2]
[342236569,1731610263714,-32234.35,0.0001726,2]
[342236570,1731610263732,-500.0,0.0001726,2]
[342236571,1731610263742,-500.0,0.0001726,2]
[342236572,1731610263752,-20503.9,0.0001726,2]
[342236573,1731610263763,-176.51064147,0.0001726,2]
[342236574,1731610263776,-835.75,0.0001726,2]
[342236575,1731610263786,-695.49,0.0001726,2]
[342236576,1731610263796,-500.0,0.0001726,2]
[342236577,1731610263805,-187.66105772,0.0001726,2]
[342236578,1731610263815,-500.0,0.0001726,2]
[342236579,1731610263824,-500.0,0.0001726,2]
[342236580,1731610263834,-6013.42,0.0001726,2]
[342236581,1731610263844,-705.24,0.0001726,2]
[342236582,1731610263853,-593.60466917,0.0001726,2]
[342236583,1731610263863,-596.4545811,0.00017321,2]
[342236584,1731610429083,302.366924,0.00015446,2]
[342236585,1731610479434,294.626905,0.00013973,2]
[342236586,1731610875349,192.184896,0.00015575,2]
[342236587,1731610897208,158.88664674,1.397e-05,2]
[342236588,1731610900555,3101.7956353,0.00015575,2]
[342236610,1731611311539,288.293401,0.00013973,2]
[342236642,1731611432383,-302.366924,0.00016131,2]
[342236645,1731611432393,-300.0,0.00016437,2]
[342236647,1731611432403,-368.62359431,0.00016438,2]
[342236649,1731611432414,-500.0,0.00016438,2]
[342236651,1731611432424,-700.46823,0.00016438,2]
[342236653,1731611432433,-700.46823,0.00016438,2]
[342236655,1731611432443,-700.46823,0.00016438,2]
[342236657,1731611432452,-500.0,0.00016438,2]
[342236659,1731611432461,-633.29054058,0.00016438,2]
[342236661,1731611432473,-67.17768942,0.00016438,2]
[342236663,1731611432483,-700.46823,0.00016438,2]
[342236665,1731611432492,-700.46823,0.00016438,2]
[342236668,1731611432501,-151.0,0.00016438,2]
[342236671,1731611432511,-151.939578,0.00016438,2]
[342236674,1731611432520,-152.806068,0.00016438,2]
[342236676,1731611432530,-151.0,0.00016438,2]
[342236678,1731611432539,-151.0,0.00016438,2]
[342236680,1731611432549,-151.0,0.00016438,2]
[342236683,1731611432559,-506.63559669,0.00016438,2]
[342236684,1731611432569,-669.69,0.00016438,2]
[342236686,1731611432578,-500.0,0.00016438,2]
[342236689,1731611432588,-500.0,0.00016438,2]
[342236691,1731611432597,-500.0,0.00016438,2]
[342236692,1731611432606,-500.0,0.00016438,2]
[342236695,1731611432617,-500.0,0.00016438,2]
[342236697,1731611432627,-585.16,0.00016438,2]
[342236699,1731611432636,-500.0,0.00016438,2]
[342236701,1731611432645,-500.0,0.00016438,2]
[342236703,1731611432655,-500.0,0.00016438,2]
[342236705,1731611432664,-500.0,0.00016438,2]
[342236707,1731611432673,-500.0,0.00016438,2]
[342236709,1731611432682,-500.0,0.00016438,2]
[342236711,1731611432692,-696.45,0.00016438,2]
[342236713,1731611432701,-323.11433513,0.00016438,2]
[342236715,1731611432711,-52.77127276,0.00016438,2]
[342236736,1731611436827,302.366924,0.000158,2]
[342236752,1731611440365,-271.314995,0.00016438,2]
[342236762,1731611443403,-175.91373224,0.00016438,2]
[342236763,1731611443413,-500.0,0.00016438,2]
[342236764,1731611443422,-482.07658174,0.00016438,2]
[342236765,1731611443431,-500.0,0.00016438,2]
[342236766,1731611443440,-500.0,0.00016438,2]
[342236767,1731611443450,-500.0,0.00016438,2]
[342236768,1731611443459,-614.48,0.00016438,2]
[342236769,1731611443468,-564.03,0.00016438,2]
[342236770,1731611443477,-596.6,0.00016438,2]
[342236771,1731611443486,-500.0,0.00016438,2]
[342236772,1731611443496,-500.0,0.00016438,2]
[342236773,1731611443506,-500.0,0.00016438,2]
[342236774,1731611443515,-251.01886995,0.00016438,2]
[342236775,1731611443527,-248.98113005,0.00016438,2]
[342236776,1731611443536,-500.0,0.00016438,2]
[342236777,1731611443545,-500.0,0.00016438,2]
[342236778,1731611443554,-313.35871653,0.00016438,2]
[342236785,1731611446261,-186.64128347,0.00016438,2]
[342236786,1731611446271,-640.40465862,0.00016438,2]
[342236787,1731611446280,-553.58,0.00016438,2]
[342236788,1731611446290,-138.32923884,0.00016438,2]
[342236789,1731611446303,-361.67076116,0.00016438,2]
[342236790,1731611446312,-500.0,0.00016438,2]
[342236791,1731611446322,-249.29060354,0.00016438,2]
[342236792,1731611446359,-384.74939646,0.00016438,2]
[342236793,1731611446368,-467.10851086,0.00016438,2]
[342236794,1731611491892,217.16,0.00010959,2]
[342236796,1731611502502,180.96,0.00010959,2]
[342236797,1731611513173,150.8,0.00010959,2]
[342236798,1731611523798,754.05,0.00010959,2]
[342236799,1731611593477,246.85235,0.0001555,2]
[342236800,1731611807565,248.015154,0.00015437,2]
[342236801,1731611807906,248.015154,0.00015442,2]
[342236802,1731611808229,248.015154,0.00015446,2]
[342236803,1731611808443,248.015154,0.0001545,2]
[342236804,1731611808660,248.015154,0.00015454,2]
[342236805,1731611808907,248.015154,0.00015458,2]
[342236806,1731611809162,248.015154,0.00015462,2]
[342236807,1731611825707,248.015154,0.00015466,2]
[342236808,1731611826256,248.015154,0.0001547,2]
[342236809,1731611827577,248.015154,0.00015474,2]
[342236810,1731611827842,248.015154,0.00015478,2]
[342236811,1731611828120,248.015154,0.00015482,2]
[342236812,1731611828312,248.015154,0.00015486,2]
[342236813,1731611828558,248.015154,0.0001549,2]
[342236814,1731611828783,248.015154,0.00015494,2]
[342236815,1731611829011,248.015154,0.00015498,2]
[342236816,1731611829288,248.015154,0.00015502,2]
[342236817,1731611829505,248.015154,0.00015506,2]
[342236818,1731611829716,248.015154,0.0001551,2]
[342236819,1731611829934,248.015154,0.00015514,2]
[342236820,1731612017866,3000.0,0.00015481,2]
[342236821,1731612039748,24900.0,0.00015437,2]
[342236822,1731612062094,282.276571,0.00013973,2]
[342236894,1731612632507,-1000.0,0.00016097,2]
[342236896,1731612632516,-1000.0,0.00016301,2]
[342236898,1731612632526,-7538.5239982,0.0001633,2]
[342236900,1731612632535,-300.0,0.00016335,2]
[342236902,1731612632545,-300.0,0.00016335,2]
[342236904,1731612632554,-159.57728863,0.00016338,2]
[342236906,1731612632563,-28055.86146967,0.00016338,2]
[342236908,1731612632572,-614.29307949,0.00016434,2]
[342236910,1731612632582,-557.60667934,0.00016437,2]
[342236912,1731612632592,-426.15693369,0.00016437,2]
[342236914,1731612632601,-500.0,0.00016437,2]
[342236916,1731612632610,-500.0,0.00016437,2]
[342236918,1731612632619,-500.0,0.00016437,2]
[342236920,1731612632629,-500.0,0.00016437,2]
[342236922,1731612632639,-500.0,0.00016437,2]
[342236944,1731612632818,-500.0,0.00016437,2]
[342236946,1731612632828,-500.0,0.00016437,2]
[342236948,1731612632838,-500.0,0.00016437,2]
[342236949,1731612632848,-500.0,0.00016437,2]
[342236950,1731612632858,-500.0,0.00016437,2]
[342236951,1731612632868,-178.31928193,0.00016437,2]
[342236952,1731612632878,-500.0,0.00016437,2]
[342236954,1731612632887,-500.0,0.00016437,2]
[342236955,1731612632897,-406.05929307,0.00016437,2]
[342236956,1731612632908,-500.0,0.00016437,2]
[342236957,1731612632917,-306.16631672,0.00016437,2]
[342236958,1731612632927,-500.0,0.00016437,2]
[342236959,1731612632937,-500.0,0.00016438,2]
[342236960,1731612632947,-500.0,0.00016438,2]
[342236961,1731612632957,-608.58,0.00016438,2]
[342236962,1731612632967,-500.0,0.00016438,2]
[342236963,1731612632978,-208.91498446,0.00016438,2]
[342236964,1731612632988,-500.0,0.00016438,2]
[342236965,1731612632997,-573.25,0.00016438,2]
[342236966,1731612633008,-500.0,0.00016438,2]
[342236967,1731612633018,-500.0,0.00016438,2]
[342236968,1731612633028,-500.0,0.00016438,2]
[342236969,1731612633038,-500.0,0.00016438,2]
[342236970,1731612633048,-557.07,0.00016438,2]
[342236971,1731612633058,-500.0,0.00016438,2]
[342236972,1731612633068,-269.56721458,0.00016438,2]
[342236973,1731612633077,-500.0,0.00016438,2]
[342236974,1731612633087,-500.0,0.00016438,2]
[342236975,1731612633097,-500.0,0.00016438,2]
[342236976,1731612633107,-500.0,0.00016438,2]
[342236977,1731612633116,-500.0,0.00016438,2]
[342236978,1731612633125,-500.0,0.00016438,2]
[342236979,1731612633135,-500.0,0.00016438,2]
[342236980,1731612633145,-500.0,0.00016438,2]
[342236981,1731612633155,-500.75861434,0.00016438,2]
[342236982,1731612633165,-500.0,0.00016438,2]
[342236983,1731612633175,-500.0,0.00016438,2]
[342236984,1731612633185,-500.0,0.00016438,2]
[342236985,1731612633195,-500.0,0.00016438,2]
[342236986,1731612633205,-500.0,0.00016438,2]
[342236987,1731612633214,-500.0,0.00016438,2]
[342236988,1731612633224,-500.0,0.00016438,2]
[342236989,1731612633234,-915.72,0.00016438,2]
[342236990,1731612633244,-500.0,0.00016438,2]
[342236991,1731612633253,-588.88,0.00016438,2]
[342236992,1731612633270,-531.74695512,0.00016438,2]
[342236993,1731612633280,-540.53,0.00016438,2]
[342236994,1731612633289,-500.0,0.00016438,2]
[342236995,1731612633299,-500.0,0.00016438,2]
[342236996,1731612633309,-571.75,0.00016438,2]
[342236997,1731612633319,-500.0,0.00016438,2]
[342236998,1731612633328,-530.51,0.00016438,2]
[342236999,1731612633338,-500.0,0.00016438,2]
[342237000,1731612633349,-541.27,0.00016438,2]
[342237001,1731612633362,-300.25339408,0.00016438,2]
[342237002,1731612633372,-500.0,0.00016438,2]
[342237003,1731612633382,-607.62,0.00016438,2]
[342237004,1731612633391,-500.0,0.00016438,2]
[342237005,1731612633402,-615.3,0.00016438,2]
[342237006,1731612633412,-500.0,0.00016438,2]
[342237007,1731612633421,-500.0,0.00016438,2]
[342237008,1731612633431,-770.17,0.00016438,2]
[342237009,1731612633440,-500.0,0.00016438,2]
[342237010,1731612633451,-535.38639806,0.00016438,2]
[342237011,1731612633460,-500.0,0.00016438,2]
[342237012,1731612633470,-500.0,0.00016438,2]
[342237013,1731612633480,-510.54,0.00016438,2]
[342237014,1731612633491,-500.0,0.00016438,2]
[342237015,1731612633501,-500.0,0.00016438,2]
[342237016,1731612633514,-500.0,0.00016438,2]
[342237017,1731612633526,-500.0,0.00016438,2]
[342237018,1731612633536,-500.0,0.00016438,2]
[342237019,1731612633546,-500.0,0.00016438,2]
[342237020,1731612633556,-658.4,0.00016438,2]
[342237021,1731612633566,-500.0,0.00016438,2]
[342237022,1731612633575,-500.0,0.00016438,2]
[342237023,1731612633585,-500.0,0.00016438,2]
[342237024,1731612633594,-500.0,0.00016438,2]
[342237025,1731612633604,-500.0,0.00016438,2]
[342237026,1731612633614,-500.0,0.00016438,2]
[342237027,1731612633623,-255.77466585,0.00016438,2]
[342237028,1731612633636,-494.20404248,0.00016438,2]
[342237030,1731612637981,246.85235,0.0001573,2]
[342237046,1731612638734,-1304.49129167,0.00016438,2]
[342237048,1731612638747,-500.0,0.00016438,2]
[342237050,1731612638757,-500.0,0.00016438,2]
[342237052,1731612638768,-500.0,0.00016438,2]
[342237055,1731612638778,-745.43,0.00016438,2]
[342237057,1731612638787,-330.36368445,0.00016438,2]
[342237070,1731612640546,-280.68631555,0.00016438,2]